lending/lending_fUSD_20250131
["ID","MTS","AMOUNT","RATE_DAILY","PERIOD"]
[351130775,1738345870602,-500.0,0.00018219,2]
[351130776,1738345870611,-500.0,0.00018219,2]
[351130777,1738345870621,-500.0,0.00018219,2]
[351130778,1738345870632,-500.0,0.00018219,2]
[351130779,1738345870642,-1023.49,0.00018219,2]
[351130780,1738345870652,-500.0,0.00018219,2]
[351130781,1738345870662,-500.0,0.00018219,2]
[351130782,1738345870672,-500.0,0.00018219,2]
[351130783,1738345870683,-517.126493,0.00018219,2]
[351130784,1738345870694,-500.0,0.00018219,2]
[351130785,1738345870704,-500.0,0.00018219,2]
[351130786,1738345870715,-500.0,0.00018219,2]
[351130787,1738345870726,-500.0,0.00018219,2]
[351130788,1738345870736,-472.821195,0.00018219,2]
[351130789,1738345870746,-500.0,0.00018219,2]
[351130790,1738345870756,-500.0,0.00018219,2]
[351130791,1738345870766,-500.0,0.00018219,2]
[351130792,1738345870775,-500.0,0.00018219,2]
[351130793,1738345870785,-699.45,0.00018219,2]
[351130794,1738345870795,-500.0,0.00018219,2]
[351130795,1738345870806,-500.0,0.00018219,2]
[351130796,1738345870816,-500.0,0.00018219,2]
[351130797,1738345870826,-480.83292834,0.00018219,2]
[351130798,1738345870835,-500.0,0.00018219,2]
[351130799,1738345870845,-500.0,0.00018219,2]
[351130800,1738345870854,-546.19,0.00018219,2]
[351130801,1738345870864,-500.0,0.00018219,2]
[351130802,1738345870873,-866.74,0.00018219,2]
[351130803,1738345870883,-500.0,0.00018219,2]
[351130804,1738345870893,-500.0,0.00018219,2]
[351130805,1738345870904,-500.0,0.00018219,2]
[351130806,1738345870913,-500.0,0.00018219,2]
[351130807,1738345870924,-632.21,0.00018219,2]
[351130808,1738345870934,-500.0,0.00018219,2]
[351130809,1738345870944,-1827.64,0.00018219,2]
[351130810,1738345870957,-497.83108085,0.00018219,2]
[351130811,1738345870968,-841.74,0.00018219,2]
[351130812,1738345870978,-500.0,0.00018219,2]
[351130813,1738345870989,-1570.9,0.00018219,2]
[351130814,1738345871001,-500.0,0.00018219,2]
[351130815,1738345871011,-601.57,0.00018219,2]
[351130816,1738345871022,-852.82,0.00018219,2]
[351130817,1738345871033,-678.21,0.00018219,2]
[351130818,1738345871043,-500.0,0.00018219,2]
[351130819,1738345871054,-500.0,0.00018219,2]
[351130820,1738345871064,-588.3,0.00018219,2]
[351130821,1738345871074,-513.92,0.00018219,2]
[351130822,1738345871083,-500.0,0.00018219,2]
[351130823,1738345871093,-500.0,0.00018219,2]
[351130824,1738345871103,-1017.28,0.00018219,2]
[351130825,1738345871113,-505.74,0.00018219,2]
[351130826,1738345871123,-500.0,0.00018219,2]
[351130827,1738345871134,-1516.18,0.00018219,2]
[351130828,1738345871144,-2102.91,0.00018219,2]
[351130829,1738345871154,-500.0,0.00018219,2]
[351130830,1738345871164,-500.0,0.00018219,2]
[351130831,1738345871174,-732.23,0.00018219,2]
[351130832,1738345871185,-999.1,0.00018219,2]
[351130833,1738345871195,-500.0,0.00018219,2]
[351130834,1738345871206,-635.16,0.00018219,2]
[351130835,1738345871215,-2231.79,0.00018219,2]
[351130836,1738345871225,-500.0,0.00018219,2]
[351130837,1738345871235,-500.0,0.00018219,2]
[351130838,1738345871244,-1879.76,0.00018219,2]
[351130839,1738345871254,-500.0,0.00018219,2]
[351130840,1738345871263,-3187.02,0.00018219,2]
[351130841,1738345871273,-2847.94,0.00018219,2]
[351130842,1738345871283,-1079.09,0.00018219,2]
[351130843,1738345871296,-500.0,0.00018219,2]
[351130844,1738345871306,-500.0,0.00018219,2]
[351130845,1738345871318,-500.0,0.00018219,2]
[351130846,1738345871327,-2152.79,0.00018219,2]
[351130847,1738345871336,-1844.88,0.00018219,2]
[351130848,1738345871346,-500.0,0.00018219,2]
[351130849,1738345871356,-587.03,0.00018219,2]
[351130850,1738345871365,-2958.68,0.00018219,2]
[351130851,1738345871375,-1697.9,0.00018219,2]
[351130852,1738345871386,-1174.32,0.00018219,2]
[351130853,1738345871396,-3296.18,0.00018219,2]
[351130854,1738345871406,-500.0,0.00018219,2]
[351130855,1738345871418,-500.0,0.00018219,2]
[351130856,1738345871428,-500.0,0.00018219,2]
[351130857,1738345871438,-1011.29,0.00018219,2]
[351130858,1738345871449,-1053.08,0.00018219,2]
[351130859,1738345871459,-1892.79,0.00018219,2]
[351130860,1738345871468,-676.41,0.00018219,2]
[351130861,1738345871641,-1222.2,0.00018219,2]
[351130862,1738345871669,-301.17132329,0.00018219,2]
[351130863,1738345871679,-1179.22,0.00018219,2]
[351130864,1738345871688,-800.28,0.00018219,2]
[351130865,1738345871698,-504.67356623,0.00018219,2]
[351130866,1738345871708,-684.54,0.00018219,2]
[351130867,1738345871718,-4384.89,0.00018219,2]
[351130868,1738345871729,-1577.97,0.00018219,2]
[351130869,1738345871740,-568.77,0.00018219,2]
[351130870,1738345871749,-1328.68,0.00018219,2]
[351130871,1738345871759,-2720.16,0.00018219,2]
[351130872,1738345871770,-3853.5,0.00018219,2]
[351130873,1738345871780,-1741.72,0.00018219,2]
[351130874,1738345871790,-1121.78,0.00018219,2]
[351130875,1738345871803,-549.85,0.00018219,2]
[351130876,1738345871812,-726.57,0.00018219,2]
[351130877,1738345871822,-168.98851431,0.00018219,2]
[351130878,1738345871832,-2887.21,0.00018219,2]
[351130879,1738345871841,-656.18,0.00018219,2]
[351130880,1738345871852,-571.1,0.00018219,2]
[351130881,1738345871862,-1929.03,0.00018219,2]
[351130882,1738345871873,-1187.96,0.00018219,2]
[351130883,1738345871883,-500.0,0.00018219,2]
[351130884,1738345871892,-3123.51,0.00018219,2]
[351130885,1738345871902,-9995.63,0.00018219,2]
[351130886,1738345871912,-872.76,0.00018219,2]
[351130887,1738345871922,-1013.47,0.00018219,2]
[351130888,1738345871932,-500.0,0.00018219,2]
[351130889,1738345871942,-1431.41,0.00018219,2]
[351130890,1738345871952,-500.0,0.00018219,2]
[351130891,1738345871963,-209.0,0.0001826,2]
[351130892,1738345871972,-1176.10220293,0.00018279,2]
[351130893,1738345871981,-683.9,0.00018302,2]
[351130894,1738345871992,-5000.0,0.00018328,4]
[351130895,1738345872002,-1031.15280526,0.00018333,2]
[351130896,1738345872012,-150.0,0.00018347,2]
[351130897,1738345872021,-1135.63,0.00018355,2]
[351130898,1738345872031,-984.81,0.00018355,2]
[351130899,1738345872041,-500.0,0.00018355,2]
[351130900,1738345872051,-500.0,0.00018355,2]
[351130901,1738345872061,-612.08,0.00018355,2]
[351130902,1738345872071,-2319.45,0.00018355,2]
[351130903,1738345872081,-500.0,0.00018355,2]
[351130904,1738345872091,-500.0,0.00018355,2]
[351130905,1738345872101,-1516.58,0.00018355,2]
[351130906,1738345872110,-500.0,0.00018355,2]
[351130907,1738345872120,-515.6,0.00018355,2]
[351130908,1738345872130,-656.6,0.00018355,2]
[351130909,1738345872139,-673.9,0.00018355,2]
[351130910,1738345872148,-1745.71,0.00018355,2]
[351130911,1738345872158,-4127.96,0.00018355,2]
[351130912,1738345872167,-792.79,0.00018355,2]
[351130913,1738345872176,-687.02,0.00018355,2]
[351130914,1738345872186,-611.69,0.00018355,2]
[351130915,1738345872196,-1150.4,0.00018355,2]
[351130916,1738345872205,-610.25432774,0.00018355,2]
[351130917,1738345872215,-500.0,0.00018356,2]
[351130918,1738345872224,-500.0,0.00018356,2]
[351130919,1738345872234,-534.61,0.00018356,2]
[351130920,1738345872245,-500.0,0.00018356,2]
[351130921,1738345872255,-593.79,0.00018356,2]
[351130922,1738345872265,-333.66197328,0.00018356,2]
[351130923,1738345872274,-500.0,0.00018356,2]
[351130924,1738345872284,-500.0,0.00018356,2]
[351130925,1738345872294,-535.49,0.00018356,2]
[351130926,1738345872303,-500.0,0.00018356,2]
[351130927,1738345872315,-500.0,0.00018356,2]
[351130928,1738345872324,-514.10553006,0.00018356,2]
[351130929,1738345872333,-500.0,0.00018356,2]
[351130930,1738345872343,-500.0,0.00018356,2]
[351130931,1738345872353,-500.0,0.00018356,2]
[351130932,1738345872362,-316.19634891,0.00018356,2]
[351130933,1738345872372,-500.0,0.00018356,2]
[351130934,1738345872382,-500.0,0.00018356,2]
[351130935,1738345872391,-1023.49,0.00018356,2]
[351130936,1738345872401,-500.0,0.00018356,2]
[351130937,1738345872411,-500.0,0.00018356,2]
[351130938,1738345872420,-500.0,0.00018356,2]
[351130939,1738345872430,-517.126493,0.00018356,2]
[351130940,1738345872440,-160.22180072,0.00018356,2]
[351130941,1738345872449,-500.0,0.00018356,2]
[351130942,1738345872459,-500.0,0.00018356,2]
[351130943,1738345872468,-500.0,0.00018356,2]
[351130944,1738345872478,-472.821195,0.00018356,2]
[351130945,1738345872488,-611.20549895,0.00018356,2]
[351130946,1738345872497,-500.0,0.00018356,2]
[351130947,1738345872507,-500.0,0.00018356,2]
[351130948,1738345872516,-500.0,0.00018356,2]
[351130949,1738345872525,-699.45,0.00018356,2]
[351130950,1738345872535,-500.0,0.00018356,2]
[351130951,1738345872544,-500.0,0.00018356,2]
[351130952,1738345872554,-500.0,0.00018356,2]
[351130953,1738345872563,-500.0,0.00018356,2]
[351130954,1738345872572,-500.0,0.00018356,2]
[351130955,1738345872581,-546.19,0.00018356,2]
[351130956,1738345872591,-500.0,0.00018356,2]
[351130957,1738345872601,-866.74,0.00018356,2]
[351130958,1738345872610,-500.0,0.00018356,2]
[351130959,1738345872619,-500.0,0.00018356,2]
[351130960,1738345872628,-500.0,0.00018356,2]
[351130961,1738345872637,-500.0,0.00018356,2]
[351130962,1738345872646,-632.21,0.00018356,2]
[351130963,1738345872655,-500.0,0.00018356,2]
[351130964,1738345872664,-1827.64,0.00018356,2]
[351130965,1738345872674,-841.74,0.00018356,2]
[351130966,1738345872683,-500.0,0.00018356,2]
[351130967,1738345872692,-1570.9,0.00018356,2]
[351130968,1738345872701,-500.0,0.00018356,2]
[351130969,1738345872711,-601.57,0.00018356,2]
[351130970,1738345872720,-852.82,0.00018356,2]
[351130971,1738345872734,-678.21,0.00018356,2]
[351130972,1738345872743,-500.0,0.00018356,2]
[351130973,1738345872753,-500.0,0.00018356,2]
[351130974,1738345872762,-513.92,0.00018356,2]
[351130975,1738345872772,-588.3,0.00018356,2]
[351130976,1738345872781,-500.0,0.00018356,2]
[351130977,1738345872790,-500.0,0.00018356,2]
[351130978,1738345872800,-1017.28,0.00018356,2]
[351130979,1738345872810,-505.74,0.00018356,2]
[351130980,1738345872820,-500.0,0.00018356,2]
[351130981,1738345872830,-1516.18,0.00018356,2]
[351130982,1738345872840,-2102.91,0.00018356,2]
[351130983,1738345872849,-500.0,0.00018356,2]
[351130984,1738345872858,-500.0,0.00018356,2]
[351130985,1738345872868,-732.23,0.00018356,2]
[351130986,1738345872877,-999.1,0.00018356,2]
[351130987,1738345872887,-500.0,0.00018356,2]
[351130988,1738345872896,-635.16,0.00018356,2]
[351130989,1738345872907,-2231.79,0.00018356,2]
[351130990,1738345872918,-500.0,0.00018356,2]
[351130991,1738345872928,-500.0,0.00018356,2]
[351130992,1738345872939,-1879.76,0.00018356,2]
[351130993,1738345872948,-500.0,0.00018356,2]
[351130994,1738345872958,-2847.94,0.00018356,2]
[351130995,1738345872968,-1079.09,0.00018356,2]
[351130996,1738345872979,-3187.02,0.00018356,2]
[351130997,1738345872988,-500.0,0.00018356,2]
[351130998,1738345872998,-500.0,0.00018356,2]
[351130999,1738345873009,-500.0,0.00018356,2]
[351131000,1738345873019,-2152.79,0.00018356,2]
[351131001,1738345873028,-1844.88,0.00018356,2]
[351131002,1738345873037,-500.0,0.00018356,2]
[351131003,1738345873046,-587.03,0.00018356,2]
[351131004,1738345873055,-2958.68,0.00018356,2]
[351131005,1738345873065,-1697.9,0.00018356,2]
[351131006,1738345873074,-1174.32,0.00018356,2]
[351131007,1738345873083,-3296.18,0.00018356,2]
[351131008,1738345873093,-500.0,0.00018356,2]
[351131009,1738345873102,-500.0,0.00018356,2]
[351131010,1738345873111,-529.50295033,0.00018356,2]
[351131011,1738345873122,-1011.29,0.00018356,2]
[351131012,1738345873131,-1053.08,0.00018356,2]
[351131013,1738345873142,-1892.79,0.00018356,2]
[351131014,1738345873152,-676.41,0.00018356,2]
[351131015,1738345873162,-1222.2,0.00018356,2]
[351131016,1738345873173,-1179.22,0.00018356,2]
[351131017,1738345873182,-800.28,0.00018356,2]
[351131018,1738345873192,-684.54,0.00018356,2]
[351131019,1738345873203,-4384.89,0.00018356,2]
[351131020,1738345873212,-1577.97,0.00018356,2]
[351131021,1738345873221,-568.77,0.00018356,2]
[351131022,1738345873232,-1328.68,0.00018356,2]
[351131023,1738345873244,-2720.16,0.00018356,2]
[351131024,1738345873255,-3853.5,0.00018356,2]
[351131025,1738345873264,-1741.72,0.00018356,2]
[351131026,1738345873273,-1121.78,0.00018356,2]
[351131027,1738345873283,-549.85,0.00018356,2]
[351131028,1738345873291,-726.57,0.00018356,2]
[351131029,1738345873301,-2887.21,0.00018356,2]
[351131030,1738345873311,-656.18,0.00018356,2]
[351131031,1738345873320,-571.1,0.00018356,2]
[351131032,1738345873330,-1929.03,0.00018356,2]
[351131033,1738345873340,-1187.96,0.00018356,2]
[351131034,1738345873349,-500.0,0.00018356,2]
[351131035,1738345873359,-3123.51,0.00018356,2]
[351131036,1738345873368,-9995.63,0.00018356,2]
[351131037,1738345873378,-872.76,0.00018356,2]
[351131038,1738345873389,-1013.47,0.00018356,2]
[351131039,1738345873399,-500.0,0.00018356,2]
[351131040,1738345873409,-1431.41,0.00018356,2]
[351131041,1738345873419,-500.0,0.00018356,2]
[351131042,1738345873430,-153.408906,0.00018366,2]
[351131043,1738345873439,-1176.10220293,0.00018452,2]
[351131044,1738345873449,-163.85773649,0.00018458,2]
[351131045,1738345873459,-1135.63,0.00018492,2]
[351131046,1738345873468,-984.81,0.00018492,2]
[351131047,1738345873477,-500.0,0.00018492,2]
[351131048,1738345873486,-500.0,0.00018492,2]
[351131049,1738345873495,-612.08,0.00018492,2]
[351131050,1738345873504,-2319.45,0.00018492,2]
[351131051,1738345873514,-500.0,0.00018492,2]
[351131052,1738345873523,-500.0,0.00018492,2]
[351131053,1738345873532,-1516.58,0.00018492,2]
[351131054,1738345873541,-552.03718893,0.00018492,2]
[351131055,1738345873550,-515.6,0.00018492,2]
[351131056,1738345873559,-656.6,0.00018492,2]
[351131057,1738345873569,-673.9,0.00018492,2]
[351131058,1738345873579,-1745.71,0.00018492,2]
[351131059,1738345873588,-4127.96,0.00018492,2]
[351131060,1738345873598,-792.79,0.00018492,2]
[351131061,1738345873608,-687.02,0.00018492,2]
[351131062,1738345873619,-611.69,0.00018492,2]
[351131063,1738345873627,-1150.4,0.00018492,2]
[351131064,1738345873637,-500.0,0.00018493,2]
[351131065,1738345873647,-500.0,0.00018493,2]
[351131066,1738345873657,-534.61,0.00018493,2]
[351131067,1738345873666,-500.0,0.00018493,2]
[351131068,1738345873675,-593.79,0.00018493,2]
[351131069,1738345873685,-500.0,0.00018493,2]
[351131070,1738345873694,-500.0,0.00018493,2]
[351131071,1738345873703,-535.49,0.00018493,2]
[351131072,1738345873713,-500.0,0.00018493,2]
[351131073,1738345873725,-500.0,0.00018493,2]
[351131074,1738345873734,-500.0,0.00018493,2]
[351131075,1738345873743,-500.0,0.00018493,2]
[351131076,1738345873754,-455.2027526,0.00018493,2]
[351131077,1738345873765,-500.0,0.00018493,2]
[351131078,1738345873774,-500.0,0.00018493,2]
[351131079,1738345873784,-1023.49,0.00018493,2]
[351131080,1738345873793,-571.1326007,0.00018493,2]
[351131081,1738345873804,-500.0,0.00018493,2]
[351131082,1738345873815,-500.0,0.00018493,2]
[351131083,1738345873825,-517.126493,0.00018493,2]
[351131084,1738345873835,-466.27331593,0.00018493,2]
[351131085,1738345873845,-500.0,0.00018493,2]
[351131086,1738345873853,-526.62653839,0.00018493,2]
[351131087,1738345873863,-472.821195,0.00018493,2]
[351131088,1738345873873,-500.0,0.00018493,2]
[351131089,1738345873883,-500.0,0.00018493,2]
[351131090,1738345873893,-500.0,0.00018493,2]
[351131091,1738345873902,-699.45,0.00018493,2]
[351131092,1738345873912,-500.0,0.00018493,2]
[351131093,1738345873922,-418.24456588,0.00018493,2]
[351131094,1738345873932,-500.0,0.00018493,2]
[351131095,1738345873942,-500.0,0.00018493,2]
[351131096,1738345873952,-500.0,0.00018493,2]
[351131097,1738345873961,-546.19,0.00018493,2]
[351131098,1738345873971,-500.0,0.00018493,2]
[351131099,1738345874037,-866.74,0.00018493,2]
[351131100,1738345874048,-500.0,0.00018493,2]
[351131101,1738345874057,-500.0,0.00018493,2]
[351131102,1738345874067,-500.0,0.00018493,2]
[351131103,1738345874076,-500.0,0.00018493,2]
[351131104,1738345874086,-632.21,0.00018493,2]
[351131105,1738345874095,-500.0,0.00018493,2]
[351131106,1738345874106,-1827.64,0.00018493,2]
[351131107,1738345874115,-841.74,0.00018493,2]
[351131108,1738345874124,-500.0,0.00018493,2]
[351131109,1738345874134,-1570.9,0.00018493,2]
[351131110,1738345874143,-500.0,0.00018493,2]
[351131111,1738345874152,-601.57,0.00018493,2]
[351131112,1738345874161,-852.82,0.00018493,2]
[351131113,1738345874170,-678.21,0.00018493,2]
[351131114,1738345874179,-500.0,0.00018493,2]
[351131115,1738345874188,-500.0,0.00018493,2]
[351131116,1738345874197,-513.92,0.00018493,2]
[351131117,1738345874206,-588.3,0.00018493,2]
[351131118,1738345874215,-485.09825778,0.00018493,2]
[351131119,1738345874224,-500.0,0.00018493,2]
[351131120,1738345874233,-1017.28,0.00018493,2]
[351131121,1738345874242,-505.74,0.00018493,2]
[351131122,1738345874251,-620.68058998,0.00018493,2]
[351131123,1738345874261,-1516.18,0.00018493,2]
[351131124,1738345874271,-2102.91,0.00018493,2]
[351131125,1738345874280,-500.0,0.00018493,2]
[351131126,1738345874290,-500.0,0.00018493,2]
[351131127,1738345874299,-999.1,0.00018493,2]
[351131128,1738345874308,-732.23,0.00018493,2]
[351131129,1738345874317,-500.0,0.00018493,2]
[351131130,1738345874327,-635.16,0.00018493,2]
[351131131,1738345874336,-2231.79,0.00018493,2]
[351131132,1738345874346,-500.0,0.00018493,2]
[351131133,1738345874355,-500.0,0.00018493,2]
[351131134,1738345874366,-1879.76,0.00018493,2]
[351131135,1738345874376,-500.0,0.00018493,2]
[351131136,1738345874385,-2847.94,0.00018493,2]
[351131137,1738345874395,-3187.02,0.00018493,2]
[351131138,1738345874404,-1079.09,0.00018493,2]
[351131139,1738345874413,-500.0,0.00018493,2]
[351131140,1738345874423,-500.0,0.00018493,2]
[351131141,1738345874432,-500.0,0.00018493,2]
[351131142,1738345874441,-2152.79,0.00018493,2]
[351131143,1738345874450,-1844.88,0.00018493,2]
[351131144,1738345874459,-500.0,0.00018493,2]
[351131145,1738345874468,-2958.68,0.00018493,2]
[351131146,1738345874477,-587.03,0.00018493,2]
[351131147,1738345874488,-1697.9,0.00018493,2]
[351131148,1738345874497,-1174.32,0.00018493,2]
[351131149,1738345874506,-500.0,0.00018493,2]
[351131150,1738345874515,-3296.18,0.00018493,2]
[351131151,1738345874524,-500.0,0.00018493,2]
[351131152,1738345874534,-1011.29,0.00018493,2]
[351131153,1738345874543,-1053.08,0.00018493,2]
[351131154,1738345874551,-1892.79,0.00018493,2]
[351131155,1738345874560,-676.41,0.00018493,2]
[351131156,1738345874571,-1222.2,0.00018493,2]
[351131157,1738345874580,-1179.22,0.00018493,2]
[351131158,1738345874589,-800.28,0.00018493,2]
[351131159,1738345874598,-684.54,0.00018493,2]
[351131160,1738345874607,-4384.89,0.00018493,2]
[351131161,1738345874616,-1577.97,0.00018493,2]
[351131162,1738345874625,-568.77,0.00018493,2]
[351131163,1738345874635,-1328.68,0.00018493,2]
[351131164,1738345874644,-2720.16,0.00018493,2]
[351131165,1738345874653,-3853.5,0.00018493,2]
[351131166,1738345874662,-1741.72,0.00018493,2]
[351131167,1738345874671,-1121.78,0.00018493,2]
[351131168,1738345874680,-549.85,0.00018493,2]
[351131169,1738345874689,-726.57,0.00018493,2]
[351131170,1738345874698,-2887.21,0.00018493,2]
[351131171,1738345874708,-656.18,0.00018493,2]
[351131172,1738345874718,-571.1,0.00018493,2]
[351131173,1738345874732,-1929.03,0.00018493,2]
[351131174,1738345874741,-1187.96,0.00018493,2]
[351131175,1738345874750,-500.0,0.00018493,2]
[351131176,1738345874761,-3123.51,0.00018493,2]
[351131177,1738345874770,-9995.63,0.00018493,2]
[351131178,1738345874779,-872.76,0.00018493,2]
[351131179,1738345874788,-1013.47,0.00018493,2]
[351131180,1738345874798,-353.10809565,0.00018493,2]
[351131181,1738345874808,-1431.41,0.00018493,2]
[351131182,1738345874818,-500.0,0.00018493,2]
[351131183,1738345874827,-5000.0,0.000185,2]
[351131184,1738345874836,-5000.0,0.000185,2]
[351131185,1738345874845,-152.0,0.00018523,4]
[351131186,1738345874854,-150.0,0.00018526,2]
[351131187,1738345874863,-1059.0,0.00018601,2]
[351131188,1738345874872,-1000.0,0.00018608,2]
[351131189,1738345874881,-209.0,0.0001861,2]
[351131190,1738345874891,-1176.10220293,0.00018624,2]
[351131191,1738345874900,-1135.63,0.00018629,2]
[351131192,1738345874910,-984.81,0.00018629,2]
[351131193,1738345874920,-500.0,0.00018629,2]
[351131194,1738345874930,-500.0,0.00018629,2]
[351131195,1738345874939,-612.08,0.00018629,2]
[351131196,1738345874950,-2319.45,0.00018629,2]
[351131197,1738345874960,-243.38073999,0.00018629,2]
[351131198,1738345874970,-500.0,0.00018629,2]
[351131199,1738345874982,-1516.58,0.00018629,2]
[351131200,1738345874991,-515.6,0.00018629,2]
[351131201,1738345875001,-656.6,0.00018629,2]
[351131202,1738345875010,-673.9,0.00018629,2]
[351131203,1738345875020,-1745.71,0.00018629,2]
[351131204,1738345875030,-4127.96,0.00018629,2]
[351131205,1738345875040,-792.79,0.00018629,2]
[351131206,1738345875049,-687.02,0.00018629,2]
[351131207,1738345875059,-611.69,0.00018629,2]
[351131208,1738345875068,-1150.4,0.00018629,2]
[351131209,1738345875077,-500.0,0.0001863,2]
[351131210,1738345875086,-500.0,0.0001863,2]
[351131211,1738345875095,-534.61,0.0001863,2]
[351131212,1738345875105,-380.77754602,0.0001863,2]
[351131213,1738345875114,-593.79,0.0001863,2]
[351131214,1738345875123,-500.0,0.0001863,2]
[351131215,1738345875132,-167.40128033,0.0001863,2]
[351131216,1738345875141,-535.49,0.0001863,2]
[351131217,1738345875150,-500.0,0.0001863,2]
[351131218,1738345875161,-500.0,0.0001863,2]
[351131219,1738345875170,-500.0,0.0001863,2]
[351131220,1738345875179,-500.0,0.0001863,2]
[351131221,1738345875188,-500.0,0.0001863,2]
[351131222,1738345875198,-500.0,0.0001863,2]
[351131223,1738345875207,-1023.49,0.0001863,2]
[351131224,1738345875217,-500.0,0.0001863,2]
[351131225,1738345875227,-500.0,0.0001863,2]
[351131226,1738345875237,-517.126493,0.0001863,2]
[351131227,1738345875247,-500.0,0.0001863,2]
[351131228,1738345875256,-472.821195,0.0001863,2]
[351131229,1738345875266,-500.0,0.0001863,2]
[351131230,1738345875275,-500.0,0.0001863,2]
[351131231,1738345875285,-500.0,0.0001863,2]
[351131232,1738345875294,-699.45,0.0001863,2]
[351131233,1738345875304,-500.0,0.0001863,2]
[351131234,1738345875316,-500.0,0.0001863,2]
[351131235,1738345875325,-500.0,0.0001863,2]
[351131236,1738345875335,-500.0,0.0001863,2]
[351131237,1738345875344,-546.19,0.0001863,2]
[351131238,1738345875355,-500.0,0.0001863,2]
[351131239,1738345875364,-866.74,0.0001863,2]
[351131240,1738345875375,-500.0,0.0001863,2]
[351131241,1738345875384,-500.0,0.0001863,2]
[351131242,1738345875393,-500.0,0.0001863,2]
[351131243,1738345875403,-378.810705,0.0001863,2]
[351131244,1738345875412,-632.21,0.0001863,2]
[351131245,1738345875423,-500.0,0.0001863,2]
[351131246,1738345875433,-1827.64,0.0001863,2]
[351131247,1738345875443,-841.74,0.0001863,2]
[351131248,1738345875453,-500.0,0.0001863,2]
[351131249,1738345875464,-1570.9,0.0001863,2]
[351131250,1738345875473,-500.0,0.0001863,2]
[351131251,1738345875482,-601.57,0.0001863,2]
[351131252,1738345875491,-852.82,0.0001863,2]
[351131253,1738345875502,-678.21,0.0001863,2]
[351131254,1738345875511,-500.0,0.0001863,2]
[351131255,1738345875520,-500.0,0.0001863,2]
[351131256,1738345875529,-513.92,0.0001863,2]
[351131257,1738345875539,-588.3,0.0001863,2]
[351131258,1738345875548,-304.39,0.0001863,2]
[351131259,1738345875557,-1017.28,0.0001863,2]
[351131260,1738345875566,-505.74,0.0001863,2]
[351131261,1738345875576,-1516.18,0.0001863,2]
[351131262,1738345875585,-2102.91,0.0001863,2]
[351131263,1738345875594,-500.0,0.0001863,2]
[351131264,1738345875603,-500.0,0.0001863,2]
[351131265,1738345875612,-999.1,0.0001863,2]
[351131266,1738345875621,-732.23,0.0001863,2]
[351131267,1738345875630,-500.0,0.0001863,2]
[351131268,1738345875640,-635.16,0.0001863,2]
[351131269,1738345875649,-2231.79,0.0001863,2]
[351131270,1738345875658,-500.0,0.0001863,2]
[351131271,1738345875667,-500.0,0.0001863,2]
[351131272,1738345875677,-1879.76,0.0001863,2]
[351131273,1738345875686,-500.0,0.0001863,2]
[351131274,1738345875695,-2847.94,0.0001863,2]